[Event "Lueneburg Open-A 2019"]
[Site "Lueneburg"]
[Date "2019.08.03"]
[Round "1.34"]
[White "Kreie, Guenter"]
[Black "Koellner, Christof"]
[Result "0-1"]
[ECO "B07"]
[WhiteElo "1727"]
[BlackElo "2091"]
[Annotator "NA"]
[PlyCount "116"]
[EventDate "2019.08.03"]
[EventType "swiss"]
[EventCountry "GER"]
[SourceTitle "playchess.com"]
[Source "ChessBase"]
[SourceQuality "1"]
[TimeControl "40/5400+30:1800+30"]

1. e4 {[%emt 0:00:00]} d6 {[%emt 0:01:02]} 2. d4 {[%emt 0:00:00]} Nf6 {[%emt 0:00:04]} 3. Nc3 {[%emt 0:00:03]} e5 {[%emt 0:00:04]} 4. dxe5 {[%emt 0:00:22]} dxe5 {[%emt 0:00:02]} 5. Qxd8+ {[%emt 0:00:21]} Kxd8 {[%emt 0:00:01]} 6. Bg5 {[%emt 0:00:57]} Be6 {[%emt 0:00:45]} 7. O-O-O+ {[%emt 0:00:30]} Kc8 {[%emt 0:04:53]} 8. Bb5 {[%emt 0:04:16]} c6 {[%emt 0:02:16]} 9. Ba4 {[%emt 0:00:02]} Bb4 {[%emt 0:01:33]} 10. Bxf6 {[%emt 0:04:58]} gxf6 {[%emt 0:00:01]} 11. Bb3 {[%emt 0:00:35]} Rg8 {[%emt 0:03:15]} 12. g3 {[%emt 0:01:27]} Bc5 {[%emt 0:02:04]} 13. Nge2 {[%emt 0:04:08]} Bxf2 {[%emt 0:05:06]} 14. Rhf1 {[%emt 0:00:37]} Be3+ {[%emt 0:00:14]} 15. Kb1 {[%emt 0:00:21]} Nd7 {[%emt 0:02:21]} 16. Rd3 {[%emt 0:00:40]} Bc5 {[%emt 0:05:56]} 17. Rfd1 {[%emt 0:04:14]} Nb6 {[%emt 0:02:27]} 18. Na4 {[%emt 0:03:59]} Nxa4 {[%emt 0:00:32]} 19. Bxa4 {[%emt 0:12:18]} Bc4 {[%emt 0:02:40]} 20. Rc3 {[%emt 0:02:43]} Bxe2 {[%emt 0:00:42]} 21. Re1 {[%emt 0:57:59]} Bb4 {[%emt 1:04:32]} 22. Rxe2 {[%emt 0:00:30]} Bxc3 {[%emt 0:00:30]} 23. bxc3 {[%emt 0:00:00]} Kd7 {[%emt 0:00:00]} 24. Bb3 {[%emt 0:00:00]} Ke7 {[%emt 0:00:00]} 25. Rf2 {[%emt 0:00:00]} Rad8 {[%emt 0:00:00]} 26. Rf5 {[%emt 0:00:00]} Rd1+ {[%emt 0:00:00]} 27. Kb2 Re1 {[%emt 0:02:30]} 28. Rh5 {[%emt 0:00:00]} Rg7 {[%emt 0:00:00]} 29. Rh4 {[%emt 0:00:00]} b5 {[%emt 0:00:00]} 30. a4 {[%emt 0:00:00]} Kd6 {[%emt 0:00:00]} 31. Rh6 {[%emt 0:00:00]} Rf1 {[%emt 0:00:00]} 32. Ka3 {[%emt 0:00:00]} Kc5 {[%emt 0:00:00]} 33. a5 {[%emt 0:00:00]} a6 {[%emt 0:00:00]} 34. Rh4 {[%emt 0:00:00]} Ra1+ {[%emt 0:00:00]} 35. Kb2 {[%emt 0:00:00]} Rf1 {[%emt 0:00:00]} 36. Ka3 {[%emt 0:00:00]} Rf3 {[%emt 0:00:00]} 37. Rh6 {[%emt 0:00:00]} Kd6 {[%emt 0:00:00]} 38. Kb2 {[%emt 0:00:00]} Ke7 {[%emt 0:00:00]} 39. Rh5 {[%emt 0:00:00]} Re3 {[%emt 0:00:00]} 40. Rh4 {[%emt 0:00:00]} Re1 {[%emt 0:00:00]} 41. Ba2 {[%emt 0:00:00]} Rd1 {[%emt 0:00:00]} 42. Bb3 {[%emt 0:00:00]} Rd8 {[%emt 0:00:00]} 43. Ba2 {[%emt 0:00:00]} Rh8 {[%emt 0:00:00]} 44. Ka3 {[%emt 0:00:00]} h5 {[%emt 0:00:00]} 45. Kb4 {[%emt 0:00:00]} Kd6 {[%emt 0:00:00]} 46. c4 {[%emt 0:00:00]} c5+ {[%emt 0:00:00]} 47. Kc3 {[%emt 0:00:00]} Rg4 {[%emt 0:00:00]} 48. cxb5 {[%emt 0:00:00]} Rxh4 {[%emt 0:00:00]} 49. gxh4 {[%emt 0:00:00]} axb5 {[%emt 0:00:00]} 50. Bd5 {[%emt 0:00:00]} Kc7 {[%emt 0:00:00]} 51. a6 {[%emt 0:00:00]} Kb6 {[%emt 0:00:00]} 52. Bxf7 {[%emt 0:00:00]} Kxa6 {[%emt 0:00:00]} 53. Be6 {[%emt 0:45:30]} Rh7 {[%emt 0:43:00]} 54. Bf5 {[%emt 0:00:00]} Rg7 {[%emt 0:00:00]} 55. Kb2 {[%emt 0:00:00]} Rg2 {[%emt 0:00:00]} 56. h3 {[%emt 0:00:00]} Rg3 {[%emt 0:00:00]} 57. Be6 {[%emt 0:00:00]} Kb6 {[%emt 0:00:00]} 58. Bf7 {[%emt 0:00:00]} Re3 {[%emt 0:02:30]} 0-1

[Event "Lueneburg Open-A 2019"]
[Site "Lueneburg"]
[Date "2019.08.03"]
[Round "1.36"]
[White "Weidenhoefer, Max"]
[Black "von Estorff, Jacob"]
[Result "0-1"]
[ECO "B38"]
[WhiteElo "1805"]
[BlackElo "2055"]
[Annotator "NA"]
[PlyCount "68"]
[EventDate "2019.08.03"]
[EventType "swiss"]
[EventCountry "GER"]
[SourceTitle "playchess.com"]
[Source "ChessBase"]
[SourceQuality "1"]
[TimeControl "40/5400+30:1800+30"]

1. e4 {[%emt 0:00:00]} c5 {[%emt 0:00:00]} 2. Nf3 {[%emt 0:00:00]} Nc6 {[%emt 0:00:00]} 3. d4 {[%emt 0:00:00]} cxd4 {[%emt 0:00:00]} 4. Nxd4 {[%emt 0:00:00]} g6 {[%emt 0:00:18]} 5. c4 {[%emt 0:01:29]} Bg7 {[%emt 0:00:14]} 6. Be3 {[%emt 0:00:32]} Nf6 {[%emt 0:00:36]} 7. Nc3 {[%emt 0:00:48]} O-O {[%emt 0:02:03]} 8. Be2 {[%emt 0:01:33]} d6 {[%emt 0:00:59]} 9. O-O {[%emt 0:01:14]} Bd7 {[%emt 0:02:26]} 10. f4 {[%emt 0:01:38]} Rc8 {[%emt 0:05:22]} 11. b3 {[%emt 0:03:55]} Qa5 {[%emt 0:00:22]} 12. Rc1 {[%emt 0:04:21]} Rfe8 {[%emt 0:01:07]} 13. Bf3 {[%emt 0:01:52]} Nxd4 {[%emt 0:06:08]} 14. Bxd4 {[%emt 0:00:57]} Bc6 {[%emt 0:00:26]} 15. Nd5 {[%emt 0:10:23]} Bxd5 {[%emt 0:02:23]} 16. exd5 {[%emt 0:00:12]} Nd7 {[%emt 0:02:07]} 17. Bxg7 {[%emt 0:06:23]} Kxg7 {[%emt 0:00:07]} 18. Qd4+ {[%emt 0:02:21]} Nf6 {[%emt 0:01:08]} 19. Rf2 {[%emt 0:01:51]} Qc5 {[%emt 0:00:32]} 20. Qxc5 {[%emt 0:01:17]} Rxc5 {[%emt 0:00:16]} 21. Rd2 {[%emt 0:13:20]} b5 {[%emt 0:03:18]} 22. Rd4 {[%emt 0:04:15]} Rec8 {[%emt 0:00:35]} 23. Kf2 {[%emt 0:02:37]} Nd7 {[%emt 0:04:40]} 24. Ke3 {[%emt 0:00:53]} Nb6 {[%emt 0:01:09]} 25. Kd3 {[%emt 0:00:41]} Kf6 {[%emt 0:03:09]} 26. g4 {[%emt 0:02:23]} bxc4+ {[%emt 0:01:06]} 27. bxc4 {[%emt 0:00:12]} Ra5 {[%emt 0:00:33]} 28. Rc2 {[%emt 0:01:52]} Na4 {[%emt 0:02:01]} 29. h3 {[%emt 0:02:44]} Rb8 {[%emt 0:00:32]} 30. g5+ {[%emt 0:01:16]} Kg7 {[%emt 0:00:16]} 31. Ke2 {[%emt 0:00:31]} Nc5 {[%emt 0:02:30]} 32. Rdd2 {[%emt 0:00:43]} Rb4 {[%emt 0:02:00]} 33. Ke3 {[%emt 0:03:52]} Ra3+ {[%emt 0:00:31]} 34. Kf2 {[%emt 0:02:33]} Nd3+ {[%emt 0:03:02]} 0-1

[Event "Lueneburg Open-A 2019"]
[Site "Lueneburg"]
[Date "2019.08.03"]
[Round "1.37"]
[White "Garbuszus, Juergen"]
[Black "Gerdau, Niklas"]
[Result "0-1"]
[ECO "D46"]
[WhiteElo "2070"]
[BlackElo "1704"]
[Annotator "NA"]
[PlyCount "70"]
[EventDate "2019.08.03"]
[EventType "swiss"]
[EventCountry "GER"]
[SourceTitle "playchess.com"]
[Source "ChessBase"]
[SourceQuality "1"]
[TimeControl "40/5400+30:1800+30"]

1. d4 {[%emt 0:00:00]} d5 {[%emt 0:00:00]} 2. c4 {[%emt 0:00:00]} c6 {[%emt 0:00:00]} 3. Nc3 {[%emt 0:00:00]} Nf6 {[%emt 0:00:05]} 4. Nf3 {[%emt 0:00:00]} e6 {[%emt 0:02:11]} 5. e3 {[%emt 0:00:05]} Bd6 {[%emt 0:00:33]} 6. Qc2 {[%emt 0:01:35]} Nbd7 {[%emt 0:00:39]} 7. Bd3 {[%emt 0:03:43]} dxc4 {[%emt 0:02:13]} 8. Bxc4 {[%emt 0:00:19]} b5 {[%emt 0:00:25]} 9. Bd3 {[%emt 0:00:26]} Bb7 {[%emt 0:00:23]} 10. O-O {[%emt 0:02:23]} O-O {[%emt 0:01:49]} 11. e4 {[%emt 0:03:44]} e5 {[%emt 0:02:05]} 12. h3 {[%emt 0:12:26]} a6 {[%emt 0:10:36]} 13. Bg5 {[%emt 0:04:39]} h6 {[%emt 0:06:22]} 14. dxe5 {[%emt 0:09:13]} Nxe5 {[%emt 0:00:51]} 15. Nxe5 {[%emt 0:00:25]} Bxe5 {[%emt 0:02:35]} 16. Be3 {[%emt 0:02:40]} Qe7 {[%emt 0:10:43]} 17. Rfe1 {[%emt 0:07:15]} Rfd8 {[%emt 0:04:58]} 18. Bb6 {[%emt 0:08:46]} Rdc8 {[%emt 0:13:58]} 19. Ne2 {[%emt 0:07:40]} c5 {[%emt 0:02:21]} 20. f4 {[%emt 0:00:12]} Bb8 {[%emt 0:00:45]} 21. e5 {[%emt 0:10:05]} Nd5 {[%emt 0:08:59]} 22. e6 {[%emt 0:03:02]} Nxb6 {[%emt 0:01:55]} 23. Ng3 {[%emt 0:02:12]} fxe6 {[%emt 0:05:09]} 24. Nh5 {[%emt 0:06:22]} c4 {[%emt 0:11:55]} 25. Bh7+ {[%emt 0:01:41]} Kf8 {[%emt 0:05:20]} 26. Bg6 {[%emt 0:00:20]} Bd6 {[%emt 0:01:12]} 27. f5 {[%emt 0:00:20]} Bc5+ {[%emt 0:01:30]} 28. Kh1 {[%emt 0:00:04]} e5 {[%emt 0:00:55]} 29. Nf4 {[%emt 0:01:50]} Nd7 {[%emt 0:02:27]} 30. Ne6+ {[%emt 0:00:22]} Kg8 {[%emt 0:00:05]} 31. Bh7+ {[%emt 0:00:07]} Kh8 {[%emt 0:00:28]} 32. Nf4 {[%emt 0:00:59]} Qf6 {[%emt 0:00:33]} 33. Rad1 {[%emt 0:02:15]} Nf8 {[%emt 0:00:41]} 34. Nh5 {[%emt 0:07:10]} Qh4 {[%emt 0:00:07]} 35. Nxg7 {[%emt 0:02:01]} Qxh3# {[%emt 0:00:41]} 0-1

[Event "Lueneburg Open-A 2019"]
[Site "Lueneburg"]
[Date "2019.08.04"]
[Round "2.1"]
[White "Grote, Dirk"]
[Black "Ovsejevitsch, Sergei"]
[Result "0-1"]
[ECO "E12"]
[WhiteElo "2037"]
[BlackElo "2590"]
[Annotator "ChessBase"]
[PlyCount "80"]
[EventDate "2019.08.03"]
[EventType "swiss"]
[EventCountry "GER"]
[SourceTitle "playchess.com"]
[Source "ChessBase"]
[SourceQuality "1"]
[TimeControl "40/5400+30:1800+30"]

1. d4 {[%emt 0:00:00]} Nf6 {[%emt 0:00:00]} 2. c4 {[%emt 0:00:00]} e6 {[%emt 0:00:00]} 3. Nf3 {[%emt 0:00:15]} b6 {[%emt 0:00:56]} 4. a3 {[%emt 0:00:45]} Bb7 {[%emt 0:00:36]} 5. Nc3 {[%emt 0:00:14]} g6 {[%emt 0:00:47]} 6. Qc2 {[%emt 0:00:52]} Bg7 {[%emt 0:00:34]} 7. e4 {[%emt 0:00:20]} O-O {[%emt 0:00:32]} 8. Bd3 {[%emt 0:01:28]} d6 {[%emt 0:00:37]} 9. O-O {[%emt 0:00:47]} Nbd7 {[%emt 0:00:10]} 10. Bg5 {[%emt 0:04:53]} h6 {[%emt 0:00:48]} 11. Bd2 {[%emt 0:01:34]} a6 {[%emt 0:07:13]} 12. Rfe1 {[%emt 0:08:15]} c5 {[%emt 0:05:36]} 13. d5 {[%emt 0:11:26]} exd5 {[%emt 0:07:09]} 14. exd5 {[%emt 0:00:56]} Ng4 {[%emt 0:04:05]} 15. h3 {[%emt 0:16:45]} Nge5 {[%emt 0:00:30]} 16. Nxe5 {[%emt 0:00:47]} dxe5 {[%emt 0:03:47]} 17. f4 {[%emt 0:11:06]} exf4 {[%emt 0:05:11]} 18. Bxf4 {[%emt 0:00:19]} Qf6 {[%emt 0:17:46]} 19. Qd2 {[%emt 0:02:43]} Rae8 {[%emt 0:04:09]} 20. Kh1 {[%emt 0:02:05]} Kh7 {[%emt 0:10:10]} 21. Rab1 {[%emt 0:02:36]} Ne5 {[%emt 0:00:37]} 22. Ne4 {[%emt 0:03:43]} Qd8 {[%emt 0:00:46]} 23. b4 {[%emt 0:05:59]} cxb4 {[%emt 0:05:45]} 24. axb4 {[%emt 0:00:15]} f5 {[%emt 0:00:28]} 25. Nc3 {[%emt 0:05:20]} Qf6 {[%emt 0:12:43]} 26. Ne2 {[%emt 0:07:11]} b5 {[%emt 0:01:37]} 27. Bxe5 {[%emt 0:02:12]} Rxe5 {[%emt 0:01:01]} 28. Nf4 {[%emt 0:00:21]} bxc4 {[%emt 0:01:11]} 29. Bxc4 {[%emt 0:00:56]} Rc8 {[%emt 0:00:42]} 30. Rxe5 {[%emt 0:00:53]} Qxe5 {[%emt 0:00:15]} 31. Re1 {[%emt 0:00:32]} Qc7 {[%emt 0:03:35]} 32. Rc1 {[%emt 0:02:09]} Qd6 {[%emt 0:04:08]} 33. Ne6 {[%emt 0:00:43]} Bf6 {[%emt 0:00:18]} 34. Nc5 {[%emt 0:01:10]} Ba8 {[%emt 0:02:30]} 35. Bxa6 {[%emt 0:02:19]} Bg5 {[%emt 0:00:18]} 36. Qe2 {[%emt 0:02:52]} Rc7 {[%emt 0:00:31]} 37. Rd1 {[%emt 0:00:41]} Re7 {[%emt 0:00:37]} 38. Qd3 {[%emt 0:01:29]} Re3 {[%emt 0:00:32]} 39. Qd4 {[%emt 0:00:28]} Bxd5 {[%emt 0:00:35]} 40. Bf1 {[%emt 0:02:01]} Rxh3+ {[%emt 0:00:17]} 0-1

[Event "Lueneburg Open-A 2019"]
[Site "Lueneburg"]
[Date "2019.08.04"]
[Round "2.2"]
[White "Kollars, Dmitrij"]
[Black "Lau, Felix"]
[Result "1-0"]
[ECO "C07"]
[WhiteElo "2581"]
[BlackElo "2044"]
[Annotator "ChessBase"]
[PlyCount "45"]
[EventDate "2019.08.03"]
[EventType "swiss"]
[EventCountry "GER"]
[SourceTitle "playchess.com"]
[Source "ChessBase"]
[SourceQuality "1"]
[TimeControl "40/5400+30:1800+30"]

1. e4 {[%emt 0:00:00]} e6 {[%emt 0:02:06]} 2. d4 {[%emt 0:00:00]} d5 {[%emt 0:00:03]} 3. Nd2 {[%emt 0:00:03]} c5 {[%emt 0:00:14]} 4. exd5 {[%emt 0:00:10]} Qxd5 {[%emt 0:00:39]} 5. Ngf3 {[%emt 0:00:17]} cxd4 {[%emt 0:00:30]} 6. Bc4 {[%emt 0:00:05]} Qd6 {[%emt 0:00:11]} 7. O-O {[%emt 0:00:20]} Nf6 {[%emt 0:00:19]} 8. Nb3 {[%emt 0:00:23]} Nc6 {[%emt 0:00:08]} 9. Nbxd4 {[%emt 0:00:19]} Nxd4 {[%emt 0:00:15]} 10. Nxd4 {[%emt 0:00:07]} a6 {[%emt 0:01:36]} 11. Re1 {[%emt 0:00:33]} Qc7 {[%emt 0:00:27]} 12. Bf1 {[%emt 0:00:24]} Bc5 {[%emt 0:10:14]} 13. Bg5 {[%emt 0:04:05]} O-O {[%emt 0:02:06]} 14. Bxf6 {[%emt 0:07:25]} gxf6 {[%emt 0:00:02]} 15. Qh5 {[%emt 0:05:08]} f5 {[%emt 0:11:50]} 16. Qg5+ {[%emt 0:05:54]} Kh8 {[%emt 0:00:16]} 17. Qf6+ {[%emt 0:00:06]} Kg8 {[%emt 0:00:32]} 18. Re3 {[%emt 0:00:59]} Bd6 {[%emt 0:05:30]} 19. Rd1 {[%emt 0:10:03]} f4 {[%emt 0:10:51]} 20. Rh3 {[%emt 0:07:05]} Qe7 {[%emt 0:03:14]} 21. Qh6 {[%emt 0:01:04]} f6 {[%emt 0:02:04]} 22. Bc4 {[%emt 0:02:02]} Rf7 {[%emt 0:03:09]} 23. Nf5 {[%emt 0:00:26]} 1-0

[Event "Lueneburg Open-A 2019"]
[Site "Lueneburg"]
[Date "2019.08.04"]
[Round "2.3"]
[White "Kosanke, Stefan"]
[Black "Vorobiov, Evgeny E."]
[Result "0-1"]
[ECO "E11"]
[WhiteElo "2029"]
[BlackElo "2578"]
[Annotator "ChessBase"]
[PlyCount "74"]
[EventDate "2019.08.03"]
[EventType "swiss"]
[EventCountry "GER"]
[SourceTitle "playchess.com"]
[Source "ChessBase"]
[SourceQuality "1"]
[TimeControl "40/5400+30:1800+30"]

1. d4 {[%emt 0:00:00]} Nf6 {[%emt 0:00:58]} 2. c4 {[%emt 0:00:00]} e6 {[%emt 0:00:10]} 3. Nf3 {[%emt 0:00:06]} Bb4+ {[%emt 0:00:22]} 4. Bd2 {[%emt 0:00:43]} a5 {[%emt 0:00:24]} 5. Nc3 {[%emt 0:02:24]} b6 {[%emt 0:02:23]} 6. Bg5 {[%emt 0:04:32]} h6 {[%emt 0:02:48]} 7. Bxf6 {[%emt 0:03:38]} Qxf6 {[%emt 0:00:07]} 8. Qc2 {[%emt 0:04:12]} Bb7 {[%emt 0:01:55]} 9. a3 {[%emt 0:00:56]} Bxf3 {[%emt 0:04:18]} 10. gxf3 {[%emt 0:09:03]} Bxc3+ {[%emt 0:01:19]} 11. Qxc3 {[%emt 0:04:29]} Nc6 {[%emt 0:03:20]} 12. O-O-O {[%emt 0:03:06]} Ne7 {[%emt 0:03:19]} 13. Rg1 {[%emt 0:04:56]} c6 {[%emt 0:03:27]} 14. Kb1 {[%emt 0:07:52]} b5 {[%emt 0:13:49]} 15. e4 {[%emt 0:04:41]} bxc4 {[%emt 0:01:58]} 16. Bxc4 {[%emt 0:01:36]} g6 {[%emt 0:07:44]} 17. Qe3 {[%emt 0:08:00]} d5 {[%emt 0:03:06]} 18. e5 {[%emt 0:04:33]} Qg7 {[%emt 0:08:01]} 19. Bd3 {[%emt 0:00:30]} h5 {[%emt 0:00:36]} 20. Rc1 {[%emt 0:04:45]} Qh6 {[%emt 0:05:11]} 21. f4 {[%emt 0:03:41]} Kd7 {[%emt 0:02:17]} 22. Rc5 {[%emt 0:02:59]} Ra7 {[%emt 0:00:30]} 23. Rgc1 {[%emt 0:02:01]} Rha8 {[%emt 0:03:01]} 24. Qd2 {[%emt 0:04:19]} Ke8 {[%emt 0:02:44]} 25. Bc2 {[%emt 0:02:25]} a4 {[%emt 0:03:23]} 26. Bd3 {[%emt 0:01:20]} Kf8 {[%emt 0:03:45]} 27. R1c2 {[%emt 0:02:23]} h4 {[%emt 0:00:36]} 28. Qe3 {[%emt 0:03:32]} Rb8 {[%emt 0:01:23]} 29. Qd2 {[%emt 0:00:45]} Kg7 {[%emt 0:04:57]} 30. Qc1 {[%emt 0:03:03]} Qh5 {[%emt 0:00:41]} 31. R5c3 {[%emt 0:01:48]} Rab7 {[%emt 0:01:01]} 32. Be2 {[%emt 0:01:09]} Qf5 {[%emt 0:01:04]} 33. Bd3 {[%emt 0:00:34]} Qg4 {[%emt 0:02:00]} 34. Be2 {[%emt 0:00:32]} Qg2 {[%emt 0:02:26]} 35. Bf1 {[%emt 0:02:56]} Qe4 {[%emt 0:01:43]} 36. Bd3 {[%emt 0:00:18]} Qxd4 {[%emt 0:01:32]} 37. Rd2 {[%emt 0:02:56]} Qxf4 {[%emt 0:00:44]} 0-1

[Event "Lueneburg Open-A 2019"]
[Site "Lueneburg"]
[Date "2019.08.04"]
[Round "2.4"]
[White "Sebastian, Dirk"]
[Black "Blum, Frederik"]
[Result "1-0"]
[ECO "B72"]
[WhiteElo "2453"]
[BlackElo "2037"]
[Annotator "ChessBase"]
[PlyCount "73"]
[EventDate "2019.08.03"]
[EventType "swiss"]
[EventCountry "GER"]
[SourceTitle "playchess.com"]
[Source "ChessBase"]
[SourceQuality "1"]
[TimeControl "40/5400+30:1800+30"]

1. e4 {[%emt 0:00:00]} c5 {[%emt 0:00:00]} 2. Nc3 {[%emt 0:00:00]} Nc6 {[%emt 0:00:00]} 3. Nge2 {[%emt 0:00:01]} g6 {[%emt 0:01:34]} 4. d4 {[%emt 0:00:32]} cxd4 {[%emt 0:00:11]} 5. Nxd4 {[%emt 0:00:02]} Bg7 {[%emt 0:00:22]} 6. Be3 {[%emt 0:00:09]} Nf6 {[%emt 0:02:34]} 7. Bc4 {[%emt 0:00:14]} d6 {[%emt 0:01:02]} 8. h3 {[%emt 0:01:13]} O-O {[%emt 0:01:48]} 9. Bb3 {[%emt 0:00:42]} Na5 {[%emt 0:02:13]} 10. O-O {[%emt 0:01:03]} a6 {[%emt 0:00:50]} 11. Re1 {[%emt 0:03:50]} Nxb3 {[%emt 0:05:59]} 12. axb3 {[%emt 0:02:29]} b5 {[%emt 0:01:58]} 13. Nd5 {[%emt 0:24:34]} Bb7 {[%emt 0:10:58]} 14. Bg5 {[%emt 0:07:48]} e6 {[%emt 0:10:04]} 15. Nxf6+ {[%emt 0:01:53]} Bxf6 {[%emt 0:00:08]} 16. Bxf6 {[%emt 0:03:18]} Qxf6 {[%emt 0:00:08]} 17. c3 {[%emt 0:05:08]} Rac8 {[%emt 0:06:31]} 18. Nc2 {[%emt 0:03:55]} Rfd8 {[%emt 0:18:40]} 19. Qd2 {[%emt 0:05:32]} Qe5 {[%emt 0:06:54]} 20. Nb4 {[%emt 0:14:26]} Ra8 {[%emt 0:06:30]} 21. Nd3 {[%emt 0:01:10]} Qf6 {[%emt 0:01:03]} 22. Qe3 {[%emt 0:00:55]} Qe7 {[%emt 0:03:33]} 23. Red1 {[%emt 0:03:28]} Qc7 {[%emt 0:03:10]} 24. h4 {[%emt 0:01:31]} Qc6 {[%emt 0:05:08]} 25. f3 {[%emt 0:01:01]} a5 {[%emt 0:00:56]} 26. h5 {[%emt 0:01:51]} Qc7 {[%emt 0:02:25]} 27. Qg5 {[%emt 0:04:07]} b4 {[%emt 0:03:57]} 28. c4 {[%emt 0:04:04]} Bc6 {[%emt 0:01:51]} 29. h6 {[%emt 0:02:05]} f5 {[%emt 0:00:32]} 30. exf5 {[%emt 0:01:27]} exf5 {[%emt 0:00:22]} 31. Nf4 {[%emt 0:00:50]} Kf7 {[%emt 0:02:40]} 32. Rd5 {[%emt 0:04:13]} Re8 {[%emt 0:01:06]} 33. Rxf5+ {[%emt 0:00:29]} Kg8 {[%emt 0:00:27]} 34. Nxg6 {[%emt 0:00:39]} Qa7+ {[%emt 0:00:47]} 35. Kh1 {[%emt 0:00:33]} hxg6 {[%emt 0:00:36]} 36. Qxg6+ {[%emt 0:00:09]} Kh8 {[%emt 0:00:05]} 37. Rf7 {[%emt 0:00:12]} 1-0

[Event "Lueneburg Open-A 2019"]
[Site "Lueneburg"]
[Date "2019.08.04"]
[Round "2.5"]
[White "Kiesel, Harald"]
[Black "Feuerstack, Aljoscha"]
[Result "0-1"]
[ECO "B12"]
[WhiteElo "2023"]
[BlackElo "2441"]
[Annotator "NA RC"]
[PlyCount "100"]
[EventDate "2019.08.03"]
[EventType "swiss"]
[EventCountry "GER"]
[SourceTitle "playchess.com"]
[Source "ChessBase"]
[SourceQuality "1"]
[TimeControl "40/5400+30:1800+30"]

1. e4 {[%emt 0:00:00]} c6 {[%emt 0:00:00]} 2. d4 {[%emt 0:00:00]} d5 {[%emt 0:00:00]} 3. e5 {[%emt 0:01:20]} Bf5 {[%emt 0:00:11]} 4. Nf3 {[%emt 0:00:18]} e6 {[%emt 0:00:07]} 5. Be2 {[%emt 0:00:23]} Nd7 {[%emt 0:00:42]} 6. O-O {[%emt 0:00:12]} h6 {[%emt 0:00:27]} 7. Re1 {[%emt 0:06:46]} Ne7 {[%emt 0:02:17]} 8. c3 {[%emt 0:03:19]} g5 {[%emt 0:05:59]} 9. Na3 {[%emt 0:05:01]} Qc7 {[%emt 0:02:08]} 10. Nc2 {[%emt 0:07:04]} O-O-O {[%emt 0:04:50]} 11. Ne3 {[%emt 0:02:37]} Bh7 {[%emt 0:03:20]} 12. b4 {[%emt 0:08:46]} f6 {[%emt 0:04:54]} 13. exf6 {[%emt 0:05:22]} Ng8 {[%emt 0:08:06]} 14. Ng4 {[%emt 0:06:29]} Ngxf6 {[%emt 0:05:45]} 15. Nfe5 {[%emt 0:03:48]} Ne4 {[%emt 0:14:56]} 16. Nf7 {[%emt 0:07:49]} Nxc3 {[%emt 0:06:25]} 17. Qb3 {[%emt 0:00:39]} Nxe2+ {[%emt 0:00:05]} 18. Rxe2 {[%emt 0:00:06]} Nc5 {[%emt 0:00:06]} 19. Qf3 {[%emt 0:08:37]} Be4 {[%emt 0:19:35]} 20. Qf6 {[%emt 0:01:50]} Be7 {[%emt 0:00:05]} 21. Qe5 {[%emt 0:00:52]} Qxe5 {[%emt 0:00:05]} 22. Ngxe5 {[%emt 0:03:23]} Na4 {[%emt 0:00:06]} 23. Nxd8 {[%emt 0:08:03]} Rxd8 {[%emt 0:01:00]} 24. Bd2 {[%emt 0:01:25]} Rf8 {[%emt 0:00:50]} 25. f3 {[%emt 0:01:43]} Bf5 {[%emt 0:01:07]} 26. Rc1 {[%emt 0:04:44]} a6 {[%emt 0:00:06]} 27. g4 {[%emt 0:00:54]} Bh7 {[%emt 0:01:44]} 28. Nxc6 {[%emt 0:04:36]} bxc6 {[%emt 0:00:10]} 29. Rxc6+ {[%emt 0:00:02]} Kd7 {[%emt 0:01:33]} 30. Rcxe6 {[%emt 0:00:54]} Bf6 {[%emt 0:04:58]} 31. Rxa6 {[%emt 0:01:09]} Bxd4+ {[%emt 0:03:44]} 32. Be3 {[%emt 0:01:30]} Nc3 {[%emt 0:01:34]} 33. Re1 {[%emt 0:01:37]} Re8 {[%emt 0:00:06]} 34. Bxd4 {[%emt 0:00:59]} Rxe1+ {[%emt 0:00:06]} 35. Kf2 {[%emt 0:00:56]} Re2+ {[%emt 0:00:06]} 36. Kg3 {[%emt 0:01:10]} Rxa2 {[%emt 0:07:55]} 37. Rxa2 {[%emt 0:01:16]} Nxa2 {[%emt 0:00:02]} 38. b5 {[%emt 0:00:10]} Nc1 {[%emt 0:00:44]} 39. Bg7 {[%emt 0:00:12]} Ne2+ {[%emt 0:02:17]} 40. Kf2 {[%emt 0:00:01]} Nf4 {[%emt 0:00:08]} 41. Bxh6 {[%emt 0:33:36]} Ne6 {[%emt 0:31:23]} 42. h4 {[%emt 0:00:00]} gxh4 {[%emt 0:00:00]} 43. f4 {[%emt 0:00:00]} Be4 {[%emt 0:00:00]} 44. f5 {[%emt 0:00:00]} Nc5 {[%emt 0:00:00]} 45. Be3 {[%emt 0:00:00]} Nd3+ {[%emt 0:00:00]} 46. Kg1 {[%emt 0:00:00]} Ne5 {[%emt 0:00:00]} 47. f6 {[%emt 0:00:00]} Nxg4 {[%emt 0:00:00]} 48. f7 {[%emt 0:01:14]} h3 {[%emt 0:00:00]} 49. Bf4 {[%emt 0:00:26]} Ke7 {[%emt 0:00:00]} 50. b6 {[%emt 0:00:07]} d4 {[%emt 0:00:00]} 0-1

[Event "Lueneburg Open-A 2019"]
[Site "Lueneburg"]
[Date "2019.08.04"]
[Round "2.6"]
[White "Carlstedt, Jonathan"]
[Black "Koenig, Christian"]
[Result "1-0"]
[ECO "A37"]
[WhiteElo "2408"]
[BlackElo "2026"]
[Annotator "NA"]
[PlyCount "71"]
[EventDate "2019.08.03"]
[EventType "swiss"]
[EventCountry "GER"]
[SourceTitle "playchess.com"]
[Source "ChessBase"]
[SourceQuality "1"]
[TimeControl "40/5400+30:1800+30"]

1. g3 {[%emt 0:00:19]} g6 {[%emt 0:00:00]} 2. Bg2 {[%emt 0:00:08]} Bg7 {[%emt 0:00:05]} 3. c4 {[%emt 0:00:04]} c5 {[%emt 0:01:14]} 4. Nc3 {[%emt 0:02:34]} Nc6 {[%emt 0:00:21]} 5. Nf3 {[%emt 0:00:20]} d6 {[%emt 0:02:29]} 6. a3 {[%emt 0:04:11]} a5 {[%emt 0:13:37]} 7. d3 {[%emt 0:05:05]} e5 {[%emt 0:04:38]} 8. h4 {[%emt 0:02:27]} Nf6 {[%emt 0:04:58]} 9. Nd5 {[%emt 0:10:28]} Nxd5 {[%emt 0:02:17]} 10. cxd5 {[%emt 0:00:05]} Ne7 {[%emt 0:00:41]} 11. e4 {[%emt 0:00:13]} a4 {[%emt 0:01:39]} 12. h5 {[%emt 0:00:31]} Bg4 {[%emt 0:01:44]} 13. h6 {[%emt 0:04:05]} Bf6 {[%emt 0:00:48]} 14. Bh3 {[%emt 0:02:27]} Bxh3 {[%emt 0:04:40]} 15. Rxh3 {[%emt 0:00:05]} Qd7 {[%emt 0:01:08]} 16. Rh1 {[%emt 0:00:27]} Nc8 {[%emt 0:02:27]} 17. Nh2 {[%emt 0:07:50]} O-O {[%emt 0:04:39]} 18. Ng4 {[%emt 0:02:27]} Bd8 {[%emt 0:00:34]} 19. Ne3 {[%emt 0:01:13]} f5 {[%emt 0:09:33]} 20. exf5 gxf5 {[%emt 0:00:07]} 21. Rh5 {[%emt 0:01:35]} Kh8 {[%emt 0:08:01]} 22. Bd2 {[%emt 0:00:51]} Ne7 {[%emt 0:04:32]} 23. Qe2 {[%emt 0:05:14]} b5 {[%emt 0:06:09]} 24. f4 {[%emt 0:03:12]} Ng6 {[%emt 0:02:56]} 25. fxe5 {[%emt 0:04:24]} dxe5 {[%emt 0:00:08]} 26. Bc3 {[%emt 0:00:10]} Ba5 {[%emt 0:00:59]} 27. Bxa5 {[%emt 0:08:23]} Rxa5 {[%emt 0:00:07]} 28. O-O-O {[%emt 0:00:11]} f4 {[%emt 0:04:00]} 29. Ng4 {[%emt 0:02:54]} Qxd5 {[%emt 0:06:38]} 30. Nxe5 {[%emt 0:02:09]} Nxe5 {[%emt 0:00:41]} 31. Rxe5 {[%emt 0:00:27]} Qd4 {[%emt 0:05:01]} 32. Rf1 {[%emt 0:05:23]} Raa8 {[%emt 0:00:34]} 33. Re4 {[%emt 0:01:10]} Qd6 {[%emt 0:00:19]} 34. Re6 {[%emt 0:06:19]} Qd4 {[%emt 0:00:06]} 35. gxf4 {[%emt 0:00:06]} c4 {[%emt 0:03:22]} 36. Qe4 {[%emt 0:01:25]} 1-0